[Event "Titled Tuesday Blitz October 26 2021"]
[White "Shimelkov, Vasiliy"]
[Black "Chernobay, Artem"]
[WhiteFideId "13701630"]
[BlackFideId "4167406"]
[WhiteElo "2073"]
[BlackElo "2480"]
[Result "1-0"]
[Round "10"]
[TimeControl "180+1"]
[Date "2021.10.26"]
[WhiteClock "0:00:25"]
[BlackClock "0:00:03"]

1. d4 {[%clk 0:02:59]}  Nf6 {[%clk 0:02:58]} 2. c4 {[%clk 0:02:59]}  g6 {[%clk 0:02:58]} 3. Nf3 {[%clk 0:02:57]}  Bg7 {[%clk 0:02:59]} 4. Nc3 {[%clk 0:02:57]}  d6 {[%clk 0:02:56]} 5. e4 {[%clk 0:02:56]}  O-O {[%clk 0:02:57]} 6. Be2 {[%clk 0:02:55]}  e5 {[%clk 0:02:58]} 7. dxe5 {[%clk 0:02:54]}  dxe5 {[%clk 0:02:57]} 8. Qxd8 {[%clk 0:02:54]}  Rxd8 {[%clk 0:02:58]} 9. Bg5 {[%clk 0:02:53]}  Re8 {[%clk 0:02:59]} 10. O-O {[%clk 0:02:51]}  c6 {[%clk 0:02:56]} 11. Rfd1 {[%clk 0:02:50]}  Nbd7 {[%clk 0:02:27]} 12. Nd2 {[%clk 0:02:43]}  Nc5 {[%clk 0:02:13]} 13. f3 {[%clk 0:02:38]}  Ne6 {[%clk 0:02:08]} 14. Be3 {[%clk 0:02:37]}  Bf8 {[%clk 0:02:07]} 15. Nb3 {[%clk 0:02:35]}  a5 {[%clk 0:02:03]} 16. Na4 {[%clk 0:02:32]}  Nd7 {[%clk 0:01:59]} 17. Rd2 {[%clk 0:02:28]}  Bb4 {[%clk 0:01:46]} 18. Rc2 {[%clk 0:02:24]}  Rb8 {[%clk 0:01:36]} 19. a3 {[%clk 0:02:18]}  Bf8 {[%clk 0:01:32]} 20. Rd1 {[%clk 0:02:13]}  b5 {[%clk 0:01:28]} 21. cxb5 {[%clk 0:02:10]}  cxb5 {[%clk 0:01:29]} 22. Nac5 {[%clk 0:02:07]}  Ndxc5 {[%clk 0:01:23]} 23. Nxc5 {[%clk 0:02:04]}  b4 {[%clk 0:01:13]} 24. axb4 {[%clk 0:01:57]}  Rxb4 {[%clk 0:01:13]} 25. b3 {[%clk 0:01:46]}  Nd4 {[%clk 0:01:07]} 26. Bxd4 {[%clk 0:01:42]}  exd4 {[%clk 0:01:08]} 27. Ra1 {[%clk 0:01:35]}  Bxc5 {[%clk 0:00:31]} 28. Rxc5 {[%clk 0:01:34]}  Rxb3 {[%clk 0:00:29]} 29. Raxa5 {[%clk 0:01:32]}  d3 {[%clk 0:00:26]} 30. Bf1 {[%clk 0:01:31]}  Be6 {[%clk 0:00:20]} 31. Rc1 {[%clk 0:01:22]}  Rd8 {[%clk 0:00:18]} 32. Rd1 {[%clk 0:01:20]}  Rb2 {[%clk 0:00:13]} 33. Rxd3 {[%clk 0:01:18]}  Rxd3 {[%clk 0:00:10]} 34. Bxd3 {[%clk 0:01:18]}  h5 {[%clk 0:00:11]} 35. e5 {[%clk 0:01:12]}  Kg7 {[%clk 0:00:10]} 36. Be4 {[%clk 0:01:09]}  Rd2 {[%clk 0:00:09]} 37. h4 {[%clk 0:01:07]}  Ra2 {[%clk 0:00:09]} 38. Rxa2 {[%clk 0:01:05]}  Bxa2 {[%clk 0:00:10]} 39. Kf2 {[%clk 0:01:04]}  Kf8 {[%clk 0:00:08]} 40. Ke3 {[%clk 0:01:02]}  Ke7 {[%clk 0:00:08]} 41. g4 {[%clk 0:01:00]}  hxg4 {[%clk 0:00:08]} 42. fxg4 {[%clk 0:00:59]}  Be6 {[%clk 0:00:08]} 43. Kf4 {[%clk 0:00:58]}  Kf8 {[%clk 0:00:06]} 44. Kg5 {[%clk 0:00:57]}  Kg7 {[%clk 0:00:06]} 45. h5 {[%clk 0:00:55]}  gxh5 {[%clk 0:00:06]} 46. gxh5 {[%clk 0:00:56]}  Kh8 {[%clk 0:00:04]} 47. Kf6 {[%clk 0:00:54]}  Ba2 {[%clk 0:00:02]} 48. Bc6 {[%clk 0:00:47]}  Kg8 {[%clk 0:00:02]} 49. Ke7 {[%clk 0:00:44]}  Be6 {[%clk 0:00:03]} 50. Bd7 {[%clk 0:00:42]}  Bd5 {[%clk 0:00:03]} 51. Bf5 {[%clk 0:00:41]}  Bc4 {[%clk 0:00:03]} 52. Kf6 {[%clk 0:00:40]}  Bd5 {[%clk 0:00:03]} 53. h6 {[%clk 0:00:40]}  Bc4 {[%clk 0:00:03]} 54. Bd7 {[%clk 0:00:29]}  Bd5 {[%clk 0:00:03]} 55. Be8 {[%clk 0:00:29]}  Bc4 {[%clk 0:00:04]} 56. Bxf7+ {[%clk 0:00:25]}  Bxf7 {[%clk 0:00:03]} 57. h7+ {[%clk 0:00:25]} 1-0


[Site "https://www.chess.com"]

[Event "Titled Tuesday Blitz October 26 2021"]
[White "Siva Mahadevan"]
[Black "Zheng, Andrew"]
[WhiteFideId "25043153"]
[BlackFideId "2076810"]
[WhiteElo "2203"]
[BlackElo "2175"]
[Result "1-0"]
[Round "10"]
[TimeControl "180+1"]
[Date "2021.10.26"]
[WhiteClock "0:02:49"]
[BlackClock "0:01:46"]

1. e4 {[%clk 0:03:00]}  g6 {[%clk 0:02:55]} 2. d4 {[%clk 0:03:00]}  Bg7 {[%clk 0:02:56]} 3. Nc3 {[%clk 0:03:00]}  c6 {[%clk 0:02:56]} 4. Nf3 {[%clk 0:02:59]}  d5 {[%clk 0:02:56]} 5. h3 {[%clk 0:03:00]}  dxe4 {[%clk 0:02:53]} 6. Nxe4 {[%clk 0:03:01]}  Nf6 {[%clk 0:02:54]} 7. Nxf6+ {[%clk 0:03:01]}  Bxf6 {[%clk 0:02:55]} 8. Bd3 {[%clk 0:03:01]}  O-O {[%clk 0:02:53]} 9. c3 {[%clk 0:02:59]}  Nd7 {[%clk 0:02:52]} 10. O-O {[%clk 0:02:59]}  c5 {[%clk 0:02:53]} 11. Bh6 {[%clk 0:02:59]}  Re8 {[%clk 0:02:52]} 12. Re1 {[%clk 0:02:55]}  cxd4 {[%clk 0:02:51]} 13. Nxd4 {[%clk 0:02:56]}  Nc5 {[%clk 0:02:50]} 14. Bc4 {[%clk 0:02:56]}  a6 {[%clk 0:02:41]} 15. Qf3 {[%clk 0:02:54]}  Nd7 {[%clk 0:01:53]} 16. Rad1 {[%clk 0:02:51]}  Qc7 {[%clk 0:01:49]} 17. Bxf7+ {[%clk 0:02:50]}  Kxf7 {[%clk 0:01:47]} 18. Qd5+ {[%clk 0:02:49]}  e6 {[%clk 0:01:46]} 19. Nxe6 {[%clk 0:02:49]} 1-0


[Site "https://www.chess.com"]

[Event "Titled Tuesday Blitz October 26 2021"]
[White "Solon, Nathan"]
[Black "Srihari L R"]
[WhiteFideId "2017229"]
[BlackFideId "46617116"]
[WhiteElo "2630"]
[BlackElo "2121"]
[Result "1/2-1/2"]
[Round "10"]
[TimeControl "180+1"]
[Date "2021.10.26"]
[WhiteClock "0:00:04"]
[BlackClock "0:00:06"]

1. b3 {[%clk 0:02:46]}  e5 {[%clk 0:02:57]} 2. Bb2 {[%clk 0:02:46]}  d6 {[%clk 0:02:57]} 3. c4 {[%clk 0:02:46]}  g6 {[%clk 0:02:57]} 4. d4 {[%clk 0:02:43]}  Bg7 {[%clk 0:02:54]} 5. dxe5 {[%clk 0:02:41]}  dxe5 {[%clk 0:02:55]} 6. Qxd8+ {[%clk 0:02:40]}  Kxd8 {[%clk 0:02:56]} 7. Nf3 {[%clk 0:02:40]}  f6 {[%clk 0:02:56]} 8. Nc3 {[%clk 0:02:39]}  c6 {[%clk 0:02:55]} 9. O-O-O {[%clk 0:02:39]}  Kc7 {[%clk 0:02:55]} 10. Ba3 {[%clk 0:02:38]}  Be6 {[%clk 0:02:50]} 11. Ne4 {[%clk 0:02:30]}  Nh6 {[%clk 0:02:45]} 12. Bd6+ {[%clk 0:02:13]}  Kc8 {[%clk 0:02:42]} 13. Nc5 {[%clk 0:02:13]}  Re8 {[%clk 0:02:36]} 14. g3 {[%clk 0:02:09]}  Bg4 {[%clk 0:02:29]} 15. h3 {[%clk 0:02:07]}  Bxf3 {[%clk 0:02:28]} 16. exf3 {[%clk 0:02:08]}  Nf7 {[%clk 0:02:28]} 17. Bxb8 {[%clk 0:02:00]}  Rxb8 {[%clk 0:02:26]} 18. h4 {[%clk 0:01:54]}  f5 {[%clk 0:01:57]} 19. h5 {[%clk 0:01:51]}  Bf8 {[%clk 0:01:55]} 20. Nd7 {[%clk 0:01:49]}  Be7 {[%clk 0:01:49]} 21. Nxb8 {[%clk 0:01:47]}  Kxb8 {[%clk 0:01:48]} 22. hxg6 {[%clk 0:01:46]}  hxg6 {[%clk 0:01:47]} 23. Rh7 {[%clk 0:01:42]}  Ng5 {[%clk 0:01:38]} 24. Rg7 {[%clk 0:01:42]}  Nxf3 {[%clk 0:01:37]} 25. Rxg6 {[%clk 0:01:42]}  Bc5 {[%clk 0:01:36]} 26. Bg2 {[%clk 0:01:29]}  Nd4 {[%clk 0:01:28]} 27. Rh1 {[%clk 0:01:19]}  e4 {[%clk 0:01:14]} 28. Rh7 {[%clk 0:01:09]}  Ne6 {[%clk 0:01:09]} 29. g4 {[%clk 0:00:40]}  Nf4 {[%clk 0:01:03]} 30. gxf5 {[%clk 0:00:40]}  Bxf2 {[%clk 0:00:51]} 31. Rgg7 {[%clk 0:00:37]}  Nxg2 {[%clk 0:00:36]} 32. f6 {[%clk 0:00:26]}  Nf4 {[%clk 0:00:33]} 33. Rxb7+ {[%clk 0:00:20]}  Ka8 {[%clk 0:00:32]} 34. Rbe7 {[%clk 0:00:21]}  Rf8 {[%clk 0:00:29]} 35. f7 {[%clk 0:00:20]}  Bc5 {[%clk 0:00:24]} 36. Rxe4 {[%clk 0:00:18]}  Ng6 {[%clk 0:00:21]} 37. Rg4 {[%clk 0:00:12]}  Ne5 {[%clk 0:00:18]} 38. Rg8 {[%clk 0:00:11]}  Kb7 {[%clk 0:00:18]} 39. Rxf8 {[%clk 0:00:10]}  Bxf8 {[%clk 0:00:19]} 40. Rh8 {[%clk 0:00:10]}  Ba3+ {[%clk 0:00:18]} 41. Kc2 {[%clk 0:00:09]}  Nd7 {[%clk 0:00:19]} 42. Kd3 {[%clk 0:00:04]}  Kc7 {[%clk 0:00:18]} 43. Ke4 {[%clk 0:00:04]}  Bf8 {[%clk 0:00:18]} 44. Kf5 {[%clk 0:00:04]}  Kd6 {[%clk 0:00:17]} 45. Rh1 {[%clk 0:00:02]}  Ke7 {[%clk 0:00:17]} 46. Rd1 {[%clk 0:00:02]}  Nc5 {[%clk 0:00:16]} 47. Kg6 {[%clk 0:00:02]}  Ne6 {[%clk 0:00:08]} 48. Re1 {[%clk 0:00:03]}  c5 {[%clk 0:00:07]} 49. a3 {[%clk 0:00:03]}  Kd6 {[%clk 0:00:06]} 50. Kh7 {[%clk 0:00:03]}  Ke7 {[%clk 0:00:05]} 51. Kg8 {[%clk 0:00:03]}  Bh6 {[%clk 0:00:05]} 52. Rh1 {[%clk 0:00:03]}  Bf8 {[%clk 0:00:06]} 53. Re1 {[%clk 0:00:03]}  Bh6 {[%clk 0:00:06]} 54. Rh1 {[%clk 0:00:03]}  Bf8 {[%clk 0:00:06]} 55. Re1 {[%clk 0:00:04]} 1/2-1/2


[Site "https://www.chess.com"]

[Event "Titled Tuesday Blitz October 26 2021"]
[White "Sonis, Francesco"]
[Black "Baskin, Robert"]
[WhiteFideId "895733"]
[BlackFideId "24662402"]
[WhiteElo "2373"]
[BlackElo "2521"]
[Result "1-0"]
[Round "10"]
[TimeControl "180+1"]
[Date "2021.10.26"]
[WhiteClock "0:00:48"]
[BlackClock "0:00:05"]

1. d4 {[%clk 0:03:00]}  e6 {[%clk 0:02:52]} 2. c4 {[%clk 0:03:00]}  f5 {[%clk 0:02:51]} 3. g3 {[%clk 0:02:59]}  Nf6 {[%clk 0:02:51]} 4. Nf3 {[%clk 0:02:59]}  d5 {[%clk 0:02:51]} 5. Bg2 {[%clk 0:03:00]}  Bd6 {[%clk 0:02:51]} 6. O-O {[%clk 0:03:00]}  O-O {[%clk 0:02:51]} 7. Nbd2 {[%clk 0:02:56]}  b6 {[%clk 0:02:49]} 8. b3 {[%clk 0:02:55]}  Bb7 {[%clk 0:02:47]} 9. Bb2 {[%clk 0:02:55]}  Nbd7 {[%clk 0:02:45]} 10. Ne5 {[%clk 0:02:49]}  Ne4 {[%clk 0:02:30]} 11. Ndf3 {[%clk 0:02:48]}  Qe7 {[%clk 0:02:18]} 12. Qc2 {[%clk 0:02:45]}  c5 {[%clk 0:02:08]} 13. Nxd7 {[%clk 0:02:41]}  Qxd7 {[%clk 0:02:08]} 14. cxd5 {[%clk 0:02:42]}  Bxd5 {[%clk 0:02:07]} 15. Rfd1 {[%clk 0:02:41]}  Qb7 {[%clk 0:02:04]} 16. dxc5 {[%clk 0:02:33]}  Bxc5 {[%clk 0:02:00]} 17. Bd4 {[%clk 0:02:32]}  Rac8 {[%clk 0:01:55]} 18. Qb2 {[%clk 0:02:31]}  Bxd4 {[%clk 0:01:44]} 19. Nxd4 {[%clk 0:02:15]}  Nc3 {[%clk 0:00:50]} 20. Bxd5 {[%clk 0:02:01]}  Qxd5 {[%clk 0:00:51]} 21. Rd3 {[%clk 0:01:58]}  Ne4 {[%clk 0:00:50]} 22. Rad1 {[%clk 0:01:55]}  Qe5 {[%clk 0:00:36]} 23. e3 {[%clk 0:01:44]}  Ng5 {[%clk 0:00:19]} 24. f4 {[%clk 0:01:31]}  Nh3+ {[%clk 0:00:19]} 25. Kg2 {[%clk 0:01:29]}  Qe4+ {[%clk 0:00:20]} 26. Nf3 {[%clk 0:01:20]}  Rf7 {[%clk 0:00:12]} 27. Rd8+ {[%clk 0:01:18]}  Rxd8 {[%clk 0:00:10]} 28. Rxd8+ {[%clk 0:01:19]}  Rf8 {[%clk 0:00:10]} 29. Rxf8+ {[%clk 0:00:51]}  Kxf8 {[%clk 0:00:11]} 30. Qd4 {[%clk 0:00:50]}  g5 {[%clk 0:00:05]} 31. Qxe4 {[%clk 0:00:48]}  fxe4 {[%clk 0:00:06]} 32. Ne5 {[%clk 0:00:48]}  gxf4 {[%clk 0:00:05]} 33. gxf4 {[%clk 0:00:48]} 1-0


[Site "https://www.chess.com"]

[Event "Titled Tuesday Blitz October 26 2021"]
[White "Sorokin, Aleksey"]
[Black "Bluebaum, Matthias"]
[WhiteFideId "24176460"]
[BlackFideId "24651516"]
[WhiteElo "2476"]
[BlackElo "2681"]
[Result "1-0"]
[Round "10"]
[TimeControl "180+1"]
[Date "2021.10.26"]
[WhiteClock "0:00:16"]
[BlackClock "0:00:23"]

1. e4 {[%clk 0:03:00]}  e6 {[%clk 0:02:59]} 2. d4 {[%clk 0:03:00]}  d5 {[%clk 0:03:00]} 3. Nc3 {[%clk 0:03:00]}  Nf6 {[%clk 0:03:00]} 4. e5 {[%clk 0:02:59]}  Nfd7 {[%clk 0:03:01]} 5. f4 {[%clk 0:03:00]}  c5 {[%clk 0:03:01]} 6. Nf3 {[%clk 0:03:00]}  Nc6 {[%clk 0:03:02]} 7. Be3 {[%clk 0:03:00]}  a6 {[%clk 0:03:03]} 8. a3 {[%clk 0:02:55]}  cxd4 {[%clk 0:03:03]} 9. Nxd4 {[%clk 0:02:55]}  Bc5 {[%clk 0:03:03]} 10. Qd2 {[%clk 0:02:48]}  O-O {[%clk 0:03:04]} 11. Be2 {[%clk 0:02:33]}  Nxd4 {[%clk 0:02:30]} 12. Bxd4 {[%clk 0:02:33]}  b5 {[%clk 0:02:31]} 13. Bf3 {[%clk 0:02:28]}  Qb6 {[%clk 0:02:27]} 14. Ne2 {[%clk 0:02:27]}  a5 {[%clk 0:02:17]} 15. O-O {[%clk 0:02:26]}  Bb7 {[%clk 0:02:17]} 16. b4 {[%clk 0:02:18]}  Bxd4+ {[%clk 0:02:17]} 17. Nxd4 {[%clk 0:02:18]}  axb4 {[%clk 0:02:04]} 18. axb4 {[%clk 0:02:17]}  Ra4 {[%clk 0:02:04]} 19. Be2 {[%clk 0:02:10]}  Rfa8 {[%clk 0:02:03]} 20. Rae1 {[%clk 0:02:02]}  Nb8 {[%clk 0:01:34]} 21. Bxb5 {[%clk 0:01:53]}  Ra2 {[%clk 0:01:28]} 22. f5 {[%clk 0:01:47]}  Nc6 {[%clk 0:00:52]} 23. Bxc6 {[%clk 0:01:47]}  Bxc6 {[%clk 0:00:53]} 24. f6 {[%clk 0:01:47]}  Rxc2 {[%clk 0:00:37]} 25. Qg5 {[%clk 0:01:30]}  Qxd4+ {[%clk 0:00:38]} 26. Kh1 {[%clk 0:01:16]}  Rxg2 {[%clk 0:00:30]} 27. Kxg2 {[%clk 0:01:14]}  g6 {[%clk 0:00:31]} 28. Re2 {[%clk 0:00:26]}  Qxb4 {[%clk 0:00:15]} 29. Qh6 {[%clk 0:00:16]}  Qf8 {[%clk 0:00:07]} 30. Qxf8+ {[%clk 0:00:15]}  Kxf8 {[%clk 0:00:07]} 31. Rc1 {[%clk 0:00:15]}  Bb5 {[%clk 0:00:08]} 32. Rb2 {[%clk 0:00:14]}  Bd3 {[%clk 0:00:07]} 33. Rc3 {[%clk 0:00:13]}  Be4+ {[%clk 0:00:07]} 34. Kf2 {[%clk 0:00:13]}  h5 {[%clk 0:00:05]} 35. Ke3 {[%clk 0:00:11]}  g5 {[%clk 0:00:06]} 36. Rc7 {[%clk 0:00:11]}  Kg8 {[%clk 0:00:06]} 37. Rbb7 {[%clk 0:00:11]}  Bg6 {[%clk 0:00:06]} 38. Ra7 {[%clk 0:00:10]}  Rb8 {[%clk 0:00:06]} 39. Rcb7 {[%clk 0:00:10]}  Rc8 {[%clk 0:00:07]} 40. Rc7 {[%clk 0:00:11]}  Rb8 {[%clk 0:00:08]} 41. Rab7 {[%clk 0:00:11]}  Ra8 {[%clk 0:00:08]} 42. Rc6 {[%clk 0:00:11]}  Ra3+ {[%clk 0:00:08]} 43. Ke2 {[%clk 0:00:11]}  Bd3+ {[%clk 0:00:07]} 44. Kd2 {[%clk 0:00:11]}  Bf5 {[%clk 0:00:08]} 45. Rc8+ {[%clk 0:00:11]}  Kh7 {[%clk 0:00:08]} 46. Rxf7+ {[%clk 0:00:11]}  Kh6 {[%clk 0:00:08]} 47. Rh8+ {[%clk 0:00:11]}  Bh7 {[%clk 0:00:07]} 48. Rfxh7+ {[%clk 0:00:11]}  Kg6 {[%clk 0:00:08]} 49. Rg7+ {[%clk 0:00:12]}  Kf5 {[%clk 0:00:09]} 50. f7 {[%clk 0:00:12]}  Ke4 {[%clk 0:00:09]} 51. f8=Q {[%clk 0:00:12]}  d4 {[%clk 0:00:10]} 52. Rxg5 {[%clk 0:00:11]}  Ra2+ {[%clk 0:00:10]} 53. Kc1 {[%clk 0:00:12]}  Ra1+ {[%clk 0:00:11]} 54. Kb2 {[%clk 0:00:12]}  Ra5 {[%clk 0:00:11]} 55. Rhxh5 {[%clk 0:00:12]}  Kd3 {[%clk 0:00:12]} 56. Rg3+ {[%clk 0:00:11]}  Kc4 {[%clk 0:00:12]} 57. Qc8+ {[%clk 0:00:12]}  Rc5 {[%clk 0:00:13]} 58. Qxc5+ {[%clk 0:00:12]}  Kxc5 {[%clk 0:00:14]} 59. Rd3 {[%clk 0:00:12]}  Kd5 {[%clk 0:00:15]} 60. Rh4 {[%clk 0:00:12]}  Kxe5 {[%clk 0:00:14]} 61. Rhxd4 {[%clk 0:00:13]}  Kf5 {[%clk 0:00:15]} 62. Kc3 {[%clk 0:00:13]}  e5 {[%clk 0:00:16]} 63. Rd5 {[%clk 0:00:14]}  Ke4 {[%clk 0:00:17]} 64. Rxe5+ {[%clk 0:00:14]}  Kf4 {[%clk 0:00:17]} 65. Rg3 {[%clk 0:00:15]}  Kxe5 {[%clk 0:00:16]} 66. Rg1 {[%clk 0:00:16]}  Kf4 {[%clk 0:00:16]} 67. h4 {[%clk 0:00:16]}  Kf3 {[%clk 0:00:17]} 68. h5 {[%clk 0:00:17]}  Ke3 {[%clk 0:00:18]} 69. Rg8 {[%clk 0:00:17]}  Ke2 {[%clk 0:00:19]} 70. h6 {[%clk 0:00:17]}  Kf3 {[%clk 0:00:20]} 71. h7 {[%clk 0:00:18]}  Kf4 {[%clk 0:00:21]} 72. h8=Q {[%clk 0:00:18]}  Kf5 {[%clk 0:00:22]} 73. Re8 {[%clk 0:00:17]}  Kg6 {[%clk 0:00:22]} 74. Qf8 {[%clk 0:00:18]}  Kh7 {[%clk 0:00:22]} 75. Qf2 {[%clk 0:00:17]}  Kg6 {[%clk 0:00:22]} 76. Re1 {[%clk 0:00:17]}  Kh5 {[%clk 0:00:23]} 77. Rg1 {[%clk 0:00:16]}  Kh6 {[%clk 0:00:23]} 78. Qh2# {[%clk 0:00:16]} 1-0


[Site "https://www.chess.com"]

[Event "Titled Tuesday Blitz October 26 2021"]
[White "Svane, Rasmus"]
[Black "Demidov, Mikhail"]
[WhiteFideId "4657101"]
[BlackFideId "4197143"]
[WhiteElo "2643"]
[BlackElo "2527"]
[Result "1-0"]
[Round "10"]
[TimeControl "180+1"]
[Date "2021.10.26"]
[WhiteClock "0:00:21"]
[BlackClock "0:00:05"]

1. Nf3 {[%clk 0:03:00]}  d5 {[%clk 0:02:56]} 2. g3 {[%clk 0:03:00]}  c6 {[%clk 0:02:56]} 3. Bg2 {[%clk 0:03:00]}  Bg4 {[%clk 0:02:56]} 4. O-O {[%clk 0:03:00]}  Nd7 {[%clk 0:02:56]} 5. h3 {[%clk 0:03:00]}  Bh5 {[%clk 0:02:52]} 6. d4 {[%clk 0:03:00]}  e6 {[%clk 0:02:50]} 7. c4 {[%clk 0:02:56]}  Ngf6 {[%clk 0:02:50]} 8. cxd5 {[%clk 0:02:55]}  exd5 {[%clk 0:02:51]} 9. Ne5 {[%clk 0:02:54]}  Be7 {[%clk 0:02:50]} 10. f4 {[%clk 0:02:51]}  h6 {[%clk 0:02:38]} 11. g4 {[%clk 0:02:49]}  Bg6 {[%clk 0:02:38]} 12. Nxg6 {[%clk 0:02:43]}  fxg6 {[%clk 0:02:39]} 13. Qd3 {[%clk 0:02:43]}  Kf7 {[%clk 0:02:38]} 14. Nc3 {[%clk 0:02:43]}  Rf8 {[%clk 0:02:26]} 15. e4 {[%clk 0:02:35]}  dxe4 {[%clk 0:02:25]} 16. Nxe4 {[%clk 0:02:36]}  Kg8 {[%clk 0:02:20]} 17. Qb3+ {[%clk 0:02:18]}  Kh7 {[%clk 0:02:16]} 18. Qxb7 {[%clk 0:02:14]}  Nxe4 {[%clk 0:02:16]} 19. Bxe4 {[%clk 0:02:13]}  Nf6 {[%clk 0:02:17]} 20. Bxc6 {[%clk 0:01:45]}  Qxd4+ {[%clk 0:02:14]} 21. Kh1 {[%clk 0:01:45]}  Bc5 {[%clk 0:02:00]} 22. Bg2 {[%clk 0:01:45]}  Rab8 {[%clk 0:01:51]} 23. Qf3 {[%clk 0:01:45]}  Rfe8 {[%clk 0:01:47]} 24. g5 {[%clk 0:01:29]}  hxg5 {[%clk 0:01:24]} 25. f5 {[%clk 0:01:29]}  Re5 {[%clk 0:01:01]} 26. fxg6+ {[%clk 0:01:18]}  Kxg6 {[%clk 0:01:01]} 27. Rd1 {[%clk 0:01:13]}  Qf2 {[%clk 0:00:38]} 28. Qxf2 {[%clk 0:00:48]}  Bxf2 {[%clk 0:00:39]} 29. Bf3 {[%clk 0:00:48]}  Be3 {[%clk 0:00:31]} 30. b3 {[%clk 0:00:47]}  Bxc1 {[%clk 0:00:23]} 31. Raxc1 {[%clk 0:00:47]}  Rbe8 {[%clk 0:00:21]} 32. Kg2 {[%clk 0:00:46]}  R8e7 {[%clk 0:00:21]} 33. Rd2 {[%clk 0:00:45]}  Kf7 {[%clk 0:00:13]} 34. Rc4 {[%clk 0:00:42]}  Kg6 {[%clk 0:00:13]} 35. Ra4 {[%clk 0:00:42]}  Rc7 {[%clk 0:00:12]} 36. Rc4 {[%clk 0:00:37]}  Rce7 {[%clk 0:00:12]} 37. b4 {[%clk 0:00:37]}  a5 {[%clk 0:00:10]} 38. bxa5 {[%clk 0:00:36]}  Rxa5 {[%clk 0:00:10]} 39. a4 {[%clk 0:00:37]}  Rea7 {[%clk 0:00:09]} 40. Ra2 {[%clk 0:00:37]}  Nd7 {[%clk 0:00:08]} 41. Rb4 {[%clk 0:00:30]}  Ne5 {[%clk 0:00:07]} 42. Be2 {[%clk 0:00:29]}  Nd7 {[%clk 0:00:04]} 43. Bb5 {[%clk 0:00:28]}  Nf6 {[%clk 0:00:04]} 44. Rab2 {[%clk 0:00:25]}  Kh6 {[%clk 0:00:04]} 45. Rd4 {[%clk 0:00:24]}  Rc7 {[%clk 0:00:04]} 46. Rd8 {[%clk 0:00:22]}  Rb7 {[%clk 0:00:04]} 47. Rh8+ {[%clk 0:00:22]}  Kg6 {[%clk 0:00:05]} 48. Bd3+ {[%clk 0:00:22]}  Kf7 {[%clk 0:00:04]} 49. Rxb7+ {[%clk 0:00:22]}  Ke6 {[%clk 0:00:05]} 50. Bb5 {[%clk 0:00:21]} 1-0


[Site "https://www.chess.com"]

[Event "Titled Tuesday Blitz October 26 2021"]
[White "Wagner, Dennis"]
[Black "Rozman, Levy"]
[WhiteFideId "24650684"]
[BlackFideId "2039877"]
[WhiteElo "2355"]
[BlackElo "2376"]
[Result "0-1"]
[Round "10"]
[TimeControl "180+1"]
[Date "2021.10.26"]
[WhiteClock "0:00:04"]
[BlackClock "0:00:23"]

1. c4 {[%clk 0:03:00]}  g6 {[%clk 0:02:59]} 2. g3 {[%clk 0:02:58]}  Bg7 {[%clk 0:02:59]} 3. Bg2 {[%clk 0:02:59]}  d6 {[%clk 0:02:59]} 4. Nc3 {[%clk 0:03:00]}  e5 {[%clk 0:02:57]} 5. d3 {[%clk 0:03:00]}  f5 {[%clk 0:02:56]} 6. b4 {[%clk 0:02:55]}  a5 {[%clk 0:02:55]} 7. b5 {[%clk 0:02:55]}  Nf6 {[%clk 0:02:54]} 8. Bd2 {[%clk 0:02:54]}  O-O {[%clk 0:02:52]} 9. e3 {[%clk 0:02:54]}  c6 {[%clk 0:02:51]} 10. Rb1 {[%clk 0:02:52]}  d5 {[%clk 0:02:50]} 11. cxd5 {[%clk 0:02:40]}  cxd5 {[%clk 0:02:50]} 12. Nge2 {[%clk 0:02:30]}  Be6 {[%clk 0:02:28]} 13. d4 {[%clk 0:02:26]}  e4 {[%clk 0:02:28]} 14. Nf4 {[%clk 0:02:26]}  Bf7 {[%clk 0:02:28]} 15. h4 {[%clk 0:02:23]}  Nbd7 {[%clk 0:02:27]} 16. Na4 {[%clk 0:02:09]}  h6 {[%clk 0:02:24]} 17. Qb3 {[%clk 0:01:53]}  Nb6 {[%clk 0:02:06]} 18. Nxb6 {[%clk 0:01:48]}  Qxb6 {[%clk 0:02:06]} 19. a4 {[%clk 0:01:49]}  g5 {[%clk 0:02:00]} 20. hxg5 {[%clk 0:01:47]}  hxg5 {[%clk 0:02:01]} 21. Nh3 {[%clk 0:01:48]}  Bh6 {[%clk 0:01:59]} 22. Rc1 {[%clk 0:01:47]}  Kg7 {[%clk 0:01:54]} 23. Rc5 {[%clk 0:01:39]}  Nd7 {[%clk 0:01:45]} 24. Qb2 {[%clk 0:01:27]}  Qf6 {[%clk 0:01:22]} 25. Rc7 {[%clk 0:01:26]}  Nb6 {[%clk 0:01:16]} 26. Rxb7 {[%clk 0:01:21]}  Nc4 {[%clk 0:01:15]} 27. Qa2 {[%clk 0:01:19]}  Rfb8 {[%clk 0:01:11]} 28. Rxb8 {[%clk 0:01:16]}  Rxb8 {[%clk 0:01:12]} 29. Bf1 {[%clk 0:01:15]}  Qd6 {[%clk 0:01:06]} 30. Bxc4 {[%clk 0:01:05]}  dxc4 {[%clk 0:01:07]} 31. Bxa5 {[%clk 0:01:04]}  c3 {[%clk 0:01:07]} 32. Qc2 {[%clk 0:01:03]}  Rc8 {[%clk 0:01:03]} 33. Bxc3 {[%clk 0:01:04]}  Qa3 {[%clk 0:00:52]} 34. Kd2 {[%clk 0:01:04]}  Bb3 {[%clk 0:00:50]} 35. d5+ {[%clk 0:00:38]}  Kg6 {[%clk 0:00:48]} 36. Qb1 {[%clk 0:00:16]}  Rxc3 {[%clk 0:00:45]} 37. Kxc3 {[%clk 0:00:07]}  Ba2+ {[%clk 0:00:44]} 38. Kc2 {[%clk 0:00:05]}  Qxa4+ {[%clk 0:00:43]} 39. Kd2 {[%clk 0:00:04]}  Qa5+ {[%clk 0:00:39]} 40. Kc2 {[%clk 0:00:04]}  Bxb1+ {[%clk 0:00:34]} 41. Rxb1 {[%clk 0:00:05]}  Qa2+ {[%clk 0:00:34]} 42. Rb2 {[%clk 0:00:04]}  Qc4+ {[%clk 0:00:34]} 43. Kb1 {[%clk 0:00:04]}  Qxd5 {[%clk 0:00:25]} 44. b6 {[%clk 0:00:04]}  Qb7 {[%clk 0:00:25]} 45. Ng1 {[%clk 0:00:05]}  Bg7 {[%clk 0:00:25]} 46. Rb5 {[%clk 0:00:05]}  Qc6 {[%clk 0:00:24]} 47. Rb3 {[%clk 0:00:04]}  Qc4 {[%clk 0:00:22]} 48. Ka2 {[%clk 0:00:03]}  Qc2+ {[%clk 0:00:22]} 49. Ka3 {[%clk 0:00:03]}  Bf8+ {[%clk 0:00:23]} 50. Ka4 {[%clk 0:00:04]}  Qa2+ {[%clk 0:00:23]} 0-1


[Site "https://www.chess.com"]